fUSD/lending_fUSD_20260415
["ID","MTS","AMOUNT","RATE_DAILY","PERIOD"]
[420541419,1776261604311,-484.27121924,0.00013752,2]
[420541420,1776261604335,-151.0,0.00013762,2]
[420541421,1776261604380,-1547.53716876,0.00013785,2]
[420541422,1776261604458,-2206.11828834,0.00013785,2]
[420541423,1776261604529,-151.0,0.00013817,2]
[420541424,1776261604564,-395.89851516,0.0001387,2]
[420541425,1776261604608,-311.35716764,0.0001387,2]
[420541426,1776261604653,-428.79180015,0.0001399,2]
[420541427,1776261604698,-244.2737,0.000141,2]
[420541428,1776261604748,-1477.0,0.000141,3]
[420541429,1776261604805,-1000.0,0.00014145,2]
[420541430,1776261604843,-630.81178531,0.00014271,2]
[420541431,1776261604874,-496.0,0.0001438,5]
[420541432,1776261604891,-605.0,0.0001438,5]
[420541433,1776261604919,-1547.53716876,0.00014414,2]
[420541434,1776261604935,-2206.11828834,0.00014414,2]
[420541435,1776261604967,-300.0,0.00014503,2]
[420541436,1776261604984,-3240.0,0.00014607,2]
[420541437,1776261605012,-484.27121924,0.00014789,2]
[420541438,1776261605028,-300.0,0.00015,2]
[420541439,1776261605061,-1547.53716876,0.00015042,2]
[420541440,1776261605091,-2206.11828834,0.00015042,2]
[420541441,1776261605111,-508.0,0.00015083,3]
[420541442,1776261605132,-200.0,0.00015093,2]
[420541443,1776261605152,-500.0,0.00015295,2]
[420541444,1776261605181,-692.76,0.00015295,2]
[420541445,1776261605210,-943.03,0.00015295,2]
[420541446,1776261605227,-500.0,0.00015295,2]
[420541447,1776261605261,-311.7235,0.000153,2]
[420541448,1776261605296,-630.81178531,0.0001548,2]
[420541449,1776261605371,-376.28480212,0.00015499,2]
[420541450,1776261605475,-4000.0,0.00015507,2]
[420541451,1776261605560,-190.38,0.00015605,2]
[420541452,1776261605626,-1547.53716876,0.00015671,2]
[420541453,1776261605688,-2206.11828834,0.00015671,2]
[420541454,1776261605716,-350.0,0.0001569,2]
[420541455,1776261605741,-208.84573066,0.00015699,2]
[420541456,1776261605764,-500.0,0.00015699,2]
[420541457,1776261605786,-500.0,0.00015699,2]
[420541458,1776261605806,-500.0,0.00015699,2]
[420541459,1776261605827,-500.0,0.00015699,2]
[420541460,1776261605850,-500.0,0.00015699,2]
[420541461,1776261605869,-500.0,0.00015699,2]
[420541462,1776261605883,-500.0,0.00015699,2]
[420541463,1776261605908,-597.23385709,0.00015699,2]
[420541464,1776261605919,-150.0,0.00015699,2]
[420541465,1776261605930,-150.0,0.00015699,2]
[420541466,1776261605954,-150.0,0.00015699,2]
[420541467,1776261605968,-150.0,0.00015699,2]
[420541468,1776261605984,-185.3934498,0.00015699,2]
[420541469,1776261605995,-500.0,0.00015699,2]
[420541470,1776261606007,-500.0,0.00015699,2]
[420541471,1776261606019,-500.0,0.00015699,2]
[420541472,1776261606029,-500.0,0.00015699,2]
[420541473,1776261606041,-624.99770397,0.00015699,2]
[420541474,1776261606053,-150.0,0.00015699,2]
[420541475,1776261606063,-150.0,0.00015699,2]
[420541476,1776261606073,-150.0,0.00015699,2]
[420541477,1776261606083,-150.0,0.00015699,2]
[420541478,1776261606094,-275.69367728,0.00015699,2]
[420541479,1776261606105,-484.27121924,0.00015826,2]
[420541480,1776261606115,-164.28535801,0.00015846,2]
[420541481,1776261606124,-164.3199,0.0001587,2]
[420541482,1776261606134,-500.0,0.0001589,2]
[420541483,1776261606146,-500.0,0.0001589,2]
[420541484,1776261606156,-500.0,0.0001589,2]
[420541485,1776261606165,-500.0,0.0001589,2]
[420541486,1776261606175,-500.0,0.0001589,2]
[420541487,1776261606186,-500.0,0.0001589,2]
[420541488,1776261606200,-500.0,0.0001589,2]
[420541489,1776261606210,-2000.0,0.0001589,2]
[420541490,1776261606220,-4000.0,0.00015895,2]
[420541491,1776261606233,-187.19278717,0.000159,2]
[420541492,1776261606246,-238.81,0.000159,2]
[420541493,1776261606256,-500.0,0.00015972,2]
[420541494,1776261606266,-814.0,0.00015973,2]
[420541495,1776261606278,-500.0,0.0001599,2]
[420541496,1776261606291,-607.79368302,0.0001599,2]
[420541497,1776261606300,-427.09763699,0.0001599,2]
[420541498,1776261606310,-7574.6439453,0.00015991,2]
[420541499,1776261606321,-275434.9133751,0.00015991,2]
[420541500,1776261606332,-528.6314376,0.00015991,2]
[420541501,1776261606342,-151.0,0.00015991,2]
[420541502,1776261606352,-151.0,0.00015991,2]
[420541503,1776261606361,-151.0,0.00015991,2]
[420541504,1776261606371,-15942.8683238,0.00015991,2]
[420541505,1776261606381,-151.0,0.00015991,2]
[420541506,1776261606390,-151.0,0.00015991,2]
[420541507,1776261606400,-151.0,0.00015991,2]
[420541508,1776261606410,-151.0,0.00015991,2]
[420541509,1776261606420,-151.0,0.00015991,2]
[420541510,1776261606429,-151.0,0.00015991,2]
[420541511,1776261606438,-151.0,0.00015991,2]
[420541512,1776261606449,-151.0,0.00015991,2]
[420541513,1776261606459,-151.0,0.00015991,2]
[420541514,1776261606469,-260.005644,0.00015991,2]
[420541515,1776261606478,-151.0,0.00015997,2]
[420541516,1776261606488,-500.0,0.00015999,2]
[420541517,1776261606499,-500.0,0.00015999,2]
[420541518,1776261606509,-500.0,0.00015999,2]
[420541519,1776261606518,-500.0,0.00015999,2]
[420541520,1776261606527,-500.0,0.00015999,2]
[420541521,1776261606537,-500.0,0.00015999,2]
[420541522,1776261606547,-500.0,0.00015999,2]
[420541523,1776261606556,-500.0,0.00015999,2]
[420541524,1776261606566,-500.0,0.00015999,2]
[420541525,1776261606576,-500.0,0.00015999,2]
[420541526,1776261606585,-500.0,0.00015999,2]
[420541527,1776261606595,-500.0,0.00015999,2]
[420541528,1776261606604,-500.0,0.00015999,2]
[420541529,1776261606614,-500.0,0.00015999,2]
[420541530,1776261606623,-333.34328368,0.00015999,2]
[420541531,1776261608321,-166.65671632,0.00015999,2]
[420541532,1776261608332,-500.0,0.00015999,2]
[420541533,1776261608343,-500.0,0.00015999,2]
[420541534,1776261608353,-444.23438107,0.00015999,2]
[420541535,1776261608373,-55.76561893,0.00015999,2]
[420541536,1776261608385,-500.0,0.00015999,2]
[420541537,1776261608394,-200.42055393,0.00015999,2]
[420541538,1776261608417,-299.57944607,0.00015999,2]
[420541539,1776261608430,-210.42055393,0.00015999,2]
[420541540,1776261608446,-482.33944607,0.00015999,2]
[420541541,1776261608462,-692.76,0.00015999,2]
[420541542,1776261608475,-150.88232148,0.00015999,2]
[420541543,1776261608935,-501.70000008,0.00015999,2]
[420541544,1776261608958,-40.17767844,0.00015999,2]
[420541545,1776261608978,-692.76,0.00015999,2]
[420541546,1776261608995,-692.76,0.00015999,2]
[420541547,1776261609006,-692.76,0.00015999,2]
[420541548,1776261609020,-692.76,0.00015999,2]
[420541549,1776261609036,-692.76,0.00015999,2]
[420541550,1776261609046,-34.82036721,0.00015999,2]
[420541551,1776261609067,-542.46609112,0.00015999,2]
[420541552,1776261609082,-115.47354167,0.00015999,2]
[420541553,1776261609092,-692.76,0.00015999,2]
[420541554,1776261609102,-943.03,0.00015999,2]
[420541555,1776261609121,-943.03,0.00015999,2]
[420541556,1776261609131,-943.03,0.00015999,2]
[420541557,1776261609140,-943.03,0.00015999,2]
[420541558,1776261609157,-157.49251848,0.00015999,2]
[420541559,1776261609171,-785.53748152,0.00015999,2]
[420541560,1776261609183,-943.03,0.00015999,2]
[420541561,1776261609196,-943.03,0.00015999,2]
[420541562,1776261609213,-943.03,0.00015999,2]
[420541563,1776261609225,-943.03,0.00015999,2]
[420541564,1776261609234,-943.03,0.00015999,2]
[420541565,1776261609258,-500.0,0.00015999,2]
[420541566,1776261609269,-293.0985917,0.00015999,2]
[420541567,1776261609279,-16771.43804726,0.00016,2]
[420541568,1776261609618,-1109.5,0.00016,2]
[420541569,1776261609663,-1667559.86682486,0.00016,2]
[420541570,1776261609674,-300.0,0.00016,3]
[420541571,1776261609686,-150.0,0.00016,2]
[420541572,1776261609705,-741.0,0.00016,2]
[420541573,1776261609715,-407.82983902,0.00016,2]
[420541574,1776261609726,-155.0,0.00016,2]
[420541575,1776261609745,-548.34383173,0.00016,2]
[420541576,1776261609756,-4000.0,0.00016,2]
[420541577,1776261609766,-834.88921862,0.00016,2]
[420541578,1776261609779,-2243.28119961,0.00016,2]
[420541579,1776261609792,-1530.0,0.00016,2]
[420541580,1776261609805,-1530.0,0.00016,2]
[420541581,1776261609814,-154.46766888,0.00016,2]
[420541582,1776261609827,-528.63130307,0.00016,2]
[420541583,1776261609838,-151.0,0.00016,2]
[420541584,1776261609856,-151.0,0.00016,2]
[420541585,1776261609866,-151.0,0.00016,2]
[420541586,1776261609882,-257.819284,0.00016,2]
[420541587,1776261609893,-151.0,0.00016,2]
[420541588,1776261609903,-151.0,0.00016,2]
[420541589,1776261609915,-151.0,0.00016,2]
[420541590,1776261609925,-156.599387,0.00016,2]
[420541591,1776261609939,-151.0,0.00016,2]
[420541592,1776261609948,-151.0,0.00016,2]
[420541593,1776261609958,-151.0,0.00016,2]
[420541594,1776261609972,-8974.0,0.00016011,2]
[420541595,1776261609983,-156.74096906,0.00016027,2]
[420541596,1776261609994,-599.60298507,0.00016061,2]
[420541597,1776261610007,-159.35053257,0.00016079,2]
[420541598,1776261610019,-350.0,0.00016094,3]
[420541599,1776261610029,-63971.79702992,0.000161,2]
[420541600,1776261610041,-205.9,0.000161,14]
[420541601,1776261610053,-300.0,0.000161,2]
[420541602,1776261610065,-4.47361691,0.0001611,15]
[420541603,1776261610075,-9999.99,0.00016116,2]
[420541604,1776261610085,-6985.0,0.00016126,2]
[420541605,1776261610100,-1000.0,0.00016162,2]
[420541606,1776261610114,-153.48,0.0001617,2]
[420541607,1776261610124,-605.61,0.0001617,2]
[420541608,1776261610137,-605.61,0.0001617,2]
[420541609,1776261610150,-605.61,0.0001617,2]
[420541610,1776261610163,-605.61,0.0001617,2]
[420541611,1776261610173,-605.62,0.0001617,2]
[420541612,1776261610186,-156.74096906,0.00016192,2]
[420541613,1776261610197,-462.0,0.00016192,2]
[420541614,1776261610207,-150.0,0.00016235,2]
[420541615,1776261610218,-500.0,0.00016253,2]
[420541616,1776261610230,-500.0,0.00016253,2]
[420541617,1776261610240,-692.76,0.00016253,2]
[420541618,1776261610250,-943.03,0.00016253,2]
[420541619,1776261610261,-4748.0,0.00016254,2]
[420541620,1776261610273,-462.0,0.00016255,2]
[420541621,1776261610283,-4000.0,0.00016282,2]
[420541622,1776261610298,-1547.53716876,0.000163,2]
[420541623,1776261610310,-2206.11828834,0.000163,2]
[420541624,1776261610321,-462.0,0.00016322,2]
[420541625,1776261610331,-6354.0,0.00016333,2]
[420541626,1776261610342,-200.0,0.0001634,2]
[420541627,1776261610354,-462.0,0.00016354,2]
[420541628,1776261610365,-462.0,0.00016355,2]
[420541629,1776261610375,-156.74096906,0.00016356,2]
[420541630,1776261610387,-150.0,0.00016357,2]
[420541631,1776261610400,-462.0,0.00016369,2]
[420541632,1776261610413,-668.17342265,0.0001637,2]
[420541633,1776261610423,-1000.0,0.0001637,2]
[420541634,1776261610433,-151.7777588,0.00016372,2]
[420541635,1776261610445,-500.0,0.0001638,9]
[420541636,1776261610459,-500.0,0.0001638,9]
[420541637,1776261610471,-151.0,0.00016397,2]
[420541638,1776261610482,-500.0,0.00016399,2]
[420541639,1776261610497,-500.0,0.00016399,2]
[420541640,1776261610507,-486.893955,0.00016399,2]
[420541641,1776261610519,-500.0,0.00016399,2]
[420541642,1776261610533,-500.0,0.00016399,2]
[420541643,1776261610544,-275.46541553,0.00016399,2]
[420541644,1776261610555,-692.76,0.00016399,2]
[420541645,1776261610565,-692.76,0.00016399,2]
[420541646,1776261610582,-692.76,0.00016399,2]
[420541647,1776261610598,-692.76,0.00016399,2]
[420541648,1776261610609,-692.76,0.00016399,2]
[420541649,1776261610625,-692.83578977,0.00016399,2]
[420541650,1776261610637,-943.03,0.00016399,2]
[420541651,1776261610652,-943.03,0.00016399,2]
[420541652,1776261610671,-943.03,0.00016399,2]
[420541653,1776261610682,-943.03,0.00016399,2]
[420541654,1776261610696,-943.03,0.00016399,2]
[420541655,1776261610710,-943.05101394,0.00016399,2]
[420541656,1776261610725,-163.0,0.000164,21]
[420541657,1776261610739,-674060.83018355,0.000164,5]
[420541658,1776261610749,-1000.0,0.000164,2]
[420541659,1776261610762,-2000.0,0.000164,2]
[420541660,1776261610777,-151.0,0.000164,2]
[420541661,1776261610788,-151.0,0.000164,2]
[420541662,1776261610802,-151.0,0.000164,2]
[420541663,1776261610813,-151.0,0.000164,2]
[420541664,1776261610823,-151.0,0.000164,2]
[420541665,1776261610834,-151.0,0.000164,2]
[420541666,1776261610846,-151.0,0.000164,2]
[420541667,1776261610856,-151.0,0.000164,2]
[420541668,1776261610865,-151.0,0.000164,2]
[420541669,1776261610874,-460.3,0.00016438,2]
[420541670,1776261610882,-1386.09,0.00016438,2]
[420541671,1776261610893,-2310.15,0.00016438,2]
[420541672,1776261610903,-988.47,0.00016438,2]
[420541673,1776261610914,-150.0,0.00016438,2]
[420541674,1776261610924,-250.10815333,0.00016438,2]
[420541675,1776261610939,-550.0,0.00016438,2]
[420541676,1776261610949,-355.0,0.00016438,2]
[420541677,1776261610961,-250.0,0.00016438,2]
[420541678,1776261610971,-250.0,0.00016438,5]
[420541679,1776261610983,-217.83,0.00016438,2]
[420541680,1776261610994,-233.85,0.00016438,2]
[420541681,1776261611005,-235.393727,0.00016438,2]
[420541682,1776261611015,-235.393727,0.00016438,2]
[420541683,1776261611028,-235.393727,0.00016438,2]
[420541684,1776261611039,-235.393727,0.00016438,2]
[420541685,1776261611049,-235.393727,0.00016438,2]
[420541686,1776261611060,-235.393727,0.00016438,2]
[420541687,1776261611071,-235.393727,0.00016438,2]
[420541688,1776261611081,-235.393727,0.00016438,2]
[420541689,1776261611093,-235.393727,0.00016438,2]
[420541690,1776261611104,-235.393727,0.00016438,2]
[420541691,1776261611114,-235.393727,0.00016438,2]
[420541692,1776261611124,-235.393727,0.00016438,2]
[420541693,1776261611135,-151.0,0.00016438,2]
[420541694,1776261611146,-151.0,0.00016438,2]
[420541695,1776261611157,-151.0,0.00016438,2]
[420541696,1776261611167,-151.0,0.00016438,2]
[420541697,1776261611178,-151.0,0.00016438,2]
[420541698,1776261611188,-151.0,0.00016438,2]
[420541699,1776261611204,-151.0,0.00016438,2]
[420541700,1776261611215,-151.0,0.00016438,2]
[420541701,1776261611225,-151.0,0.00016438,2]
[420541702,1776261611236,-151.0,0.00016438,2]
[420541703,1776261611246,-151.0,0.00016438,2]
[420541704,1776261611256,-151.0,0.00016438,2]
[420541705,1776261611267,-151.0,0.00016438,2]
[420541706,1776261611278,-178.695736,0.00016438,2]
[420541707,1776261611289,-729.995082,0.00016438,2]
[420541708,1776261611301,-729.995082,0.00016438,2]
[420541709,1776261611312,-729.995082,0.00016438,2]
[420541710,1776261611323,-729.995082,0.00016438,2]
[420541711,1776261611334,-729.995082,0.00016438,2]
[420541712,1776261611345,-729.995082,0.00016438,2]
[420541713,1776261611354,-729.995082,0.00016438,2]
[420541714,1776261611365,-729.995082,0.00016438,2]
[420541715,1776261611375,-729.995082,0.00016438,2]
[420541716,1776261611387,-729.995082,0.00016438,2]
[420541717,1776261611397,-729.995082,0.00016438,2]
[420541718,1776261611408,-729.995082,0.00016438,2]
[420541719,1776261611420,-300.0,0.00016438,3]
[420541720,1776261611431,-300.0,0.00016438,3]
[420541721,1776261611441,-300.0,0.00016438,3]
[420541722,1776261611466,-300.0,0.00016438,3]
[420541723,1776261611477,-300.0,0.00016438,3]
[420541724,1776261611488,-150.0,0.00016438,2]
[420541725,1776261611499,-152.90241814,0.00016438,2]
[420541726,1776261611511,-152.0,0.00016438,2]
[420541727,1776261611522,-152.0,0.00016438,2]
[420541728,1776261611533,-229.24,0.00016438,2]
[420541729,1776261611544,-8546.0,0.0001645,2]
[420541730,1776261611555,-152.0,0.00016457,2]
[420541731,1776261611566,-500.0,0.0001647,2]
[420541732,1776261611579,-1000.0,0.0001647,2]
[420541733,1776261611590,-500.0,0.0001647,2]
[420541734,1776261611602,-500.0,0.0001647,2]
[420541735,1776261611612,-1000.0,0.0001647,2]
[420541736,1776261611626,-500.0,0.0001647,2]
[420541737,1776261611637,-500.0,0.0001647,2]
[420541738,1776261611648,-1000.0,0.0001647,2]
[420541739,1776261611659,-500.0,0.0001647,2]
[420541740,1776261611670,-1000.0,0.0001647,2]
[420541741,1776261611682,-500.0,0.0001647,2]
[420541742,1776261611693,-1000.0,0.0001647,2]
[420541743,1776261611704,-500.0,0.0001647,2]
[420541744,1776261611714,-1000.0,0.0001647,2]
[420541745,1776261611725,-500.0,0.0001647,2]
[420541746,1776261611736,-1000.0,0.0001647,2]
[420541747,1776261611747,-1000.0,0.0001647,2]
[420541748,1776261611757,-1000.0,0.0001647,2]
[420541749,1776261611768,-500.0,0.0001647,2]
[420541750,1776261611778,-1000.0,0.0001647,2]
[420541751,1776261611788,-1797.01275013,0.0001649,2]
[420541752,1776261611798,-6585.04779426,0.000165,2]
[420541753,1776261611808,-198.21397,0.000165,2]
[420541754,1776261611818,-156.23977894,0.000165,2]
[420541755,1776261611828,-7805.24356243,0.000165,2]
[420541756,1776261611838,-8115.19701722,0.000165,5]
[420541757,1776261611848,-4999.0,0.000165,3]
[420541758,1776261611858,-242.22000001,0.000165,2]
[420541759,1776261611868,-263.55197918,0.000165,2]
[420541760,1776261611878,-2959.07,0.000165,5]
[420541761,1776261611888,-229.53175335,0.000165,2]
[420541762,1776261611899,-703.15974247,0.000165,2]
[420541763,1776261612623,-212.17147058,0.000165,2]
[420541764,1776261612651,-234.38658082,0.000165,2]
[420541765,1776261612663,-4500.0,0.000165,2]
[420541766,1776261612672,-643.64,0.000165,7]
[420541767,1776261612685,-4126.27342426,0.000165,2]
[420541768,1776261612698,-150.37919341,0.000165,2]
[420541769,1776261612707,-837.25785259,0.000165,2]
[420541770,1776261612716,-1492.23114589,0.000165,2]
[420541771,1776261612729,-338.67694719,0.000165,2]
[420541772,1776261612742,-169.33847359,0.000165,2]
[420541773,1776261612753,-302.18412229,0.000165,2]
[420541774,1776261612762,-151.09206114,0.000165,2]
[420541775,1776261612780,-2000.0,0.000165,2]
[420541776,1776261612790,-2150.54787922,0.000165,2]
[420541777,1776261612799,-879.0,0.000165,2]
[420541778,1776261612809,-150.0,0.000165,2]
[420541779,1776261612827,-150.0,0.000165,2]
[420541780,1776261612837,-307.0,0.000165,2]
[420541781,1776261612846,-2611.12240834,0.000165,2]
[420541782,1776261612861,-1000.0,0.000165,2]
[420541783,1776261612877,-462.0,0.00016504,2]
[420541784,1776261612887,-2000.0,0.0001651,2]
[420541785,1776261612898,-3040.839598,0.0001652,2]
[420541786,1776261612919,-462.0,0.00016557,2]
[420541787,1776261612929,-9654.0,0.00016564,2]
[420541788,1776261612940,-150.0,0.00016575,2]
[420541789,1776261612951,-363.73518488,0.000166,2]
[420541790,1776261612965,-222.46,0.000166,2]
[420541791,1776261612974,-397.7978,0.000166,2]
[420541792,1776261612987,-150.0,0.0001661,2]
[420541793,1776261612997,-150.0,0.0001661,2]
[420541794,1776261613009,-622.0,0.00016644,2]
[420541795,1776261613018,-1047.0,0.00016644,2]
[420541796,1776261613034,-664.498,0.00016644,2]
[420541797,1776261613043,-518.016,0.00016644,2]
[420541798,1776261613055,-2833.0,0.00016644,2]
[420541799,1776261613071,-8324.0,0.00016654,2]
[420541800,1776261613082,-160.26,0.00016667,7]
[420541801,1776261613093,-508.0,0.00016667,4]
[420541802,1776261613105,-4000.0,0.0001667,2]
[420541803,1776261613123,-630.81178531,0.0001669,2]
[420541804,1776261613136,-460.3,0.00016712,2]
[420541805,1776261613145,-157.54619372,0.00016712,2]
[420541806,1776261613161,-234.11,0.00016712,2]
[420541807,1776261613173,-150.0,0.00016719,2]
[420541808,1776261613185,-150.0,0.00016719,2]
[420541809,1776261613205,-7412.0,0.0001673,2]
[420541810,1776261613217,-462.0,0.00016748,2]
[420541811,1776261613229,-13622.376,0.000168,2]
[420541812,1776261613245,-462.0,0.00016812,2]
[420541813,1776261613255,-361.03,0.00016815,2]
[420541814,1776261613266,-162.7561,0.00016819,2]
[420541815,1776261613277,-150.0,0.00016829,2]
[420541816,1776261613290,-150.0,0.00016829,2]
[420541817,1776261613302,-7254.0,0.00016846,2]
[420541818,1776261613313,-484.27121924,0.00016863,2]
[420541819,1776261613324,-150.0,0.00016912,120]
[420541820,1776261613337,-2150.54787922,0.00016927,2]
[420541821,1776261613351,-1492.23114589,0.00016937,2]
[420541822,1776261613360,-150.0,0.00016938,2]
[420541823,1776261613372,-150.0,0.00016938,2]
[420541824,1776261613382,-703.15974247,0.00016952,2]
[420541825,1776261613397,-2300.98989196,0.00016954,15]
[420541826,1776261613407,-6450.0,0.00016986,2]
[420541827,1776261613421,-460.3,0.00016986,2]
[420541828,1776261613434,-150.0,0.00016986,2]
[420541829,1776261613447,-784146.31425619,0.00017,2]
[420541830,1776261613458,-594937.82628312,0.00017,2]
[420541831,1776261613468,-0.33562856,0.00017,120]
[420541832,1776261613484,-598.22,0.00017,3]
[420541833,1776261613493,-8641.30206459,0.00017,2]
[420541834,1776261613505,-50000.0,0.00017,2]
[420541835,1776261613516,-40157.41815264,0.00017,2]
[420541836,1776261613535,-164.0,0.00017,14]
[420541837,1776261613547,-350.0,0.00017,2]
[420541838,1776261613561,-154.213897,0.00017,2]
[420541839,1776261613579,-235.393727,0.00017,2]
[420541840,1776261613589,-235.393727,0.00017,2]
[420541841,1776261613604,-235.393727,0.00017,2]
[420541842,1776261613620,-235.393727,0.00017,2]
[420541843,1776261613633,-235.393727,0.00017,2]
[420541844,1776261613646,-235.393727,0.00017,2]
[420541845,1776261613660,-235.393727,0.00017,2]
[420541846,1776261613671,-235.393719,0.00017,2]
[420541847,1776261613682,-151.0,0.00017,2]
[420541848,1776261613695,-151.0,0.00017,2]
[420541849,1776261613710,-217.357057,0.00017,2]
[420541850,1776261613722,-151.0,0.00017,2]
[420541851,1776261613734,-151.0,0.00017,2]
[420541852,1776261613746,-151.0,0.00017,2]
[420541853,1776261613758,-151.0,0.00017,2]
[420541854,1776261613769,-151.0,0.00017,2]
[420541855,1776261613781,-151.0,0.00017,2]
[420541856,1776261613790,-189.992299,0.00017,2]
[420541857,1776261613804,-729.995082,0.00017,2]
[420541858,1776261613814,-729.995082,0.00017,2]
[420541859,1776261613826,-729.995082,0.00017,2]
[420541860,1776261613835,-729.995082,0.00017,2]
[420541861,1776261613848,-729.995082,0.00017,2]
[420541862,1776261613858,-729.995082,0.00017,2]
[420541863,1776261613868,-729.995082,0.00017,2]
[420541864,1776261613878,-729.995083,0.00017,2]
[420541865,1776261613892,-151.0,0.00017,2]
[420541866,1776261613902,-151.0,0.00017,2]
[420541867,1776261613912,-151.0,0.00017,2]
[420541868,1776261613921,-151.0,0.00017,2]
[420541869,1776261613936,-151.0,0.00017,2]
[420541870,1776261613945,-151.0,0.00017,2]
[420541871,1776261613955,-5550.0,0.00017013,2]
[420541872,1776261613971,-350.0,0.00017034,2]
[420541873,1776261613982,-150.0,0.00017048,2]
[420541874,1776261613992,-150.0,0.00017048,2]
[420541875,1776261614005,-4000.0,0.00017058,2]
[420541876,1776261614017,-3540.0,0.00017112,2]
[420541877,1776261614029,-150.0,0.00017158,2]
[420541878,1776261614041,-150.0,0.00017158,2]
[420541879,1776261614050,-2000.0,0.00017211,2]
[420541880,1776261614062,-717.81,0.00017219,2]
[420541881,1776261614074,-4505.0,0.00017225,2]
[420541882,1776261614084,-460.3,0.0001726,2]
[420541883,1776261614094,-150.0,0.00017267,2]
[420541884,1776261614106,-150.0,0.00017267,2]
[420541885,1776261614118,-5826.0,0.00017337,2]
[420541886,1776261614127,-1318.38,0.00017341,2]
[420541887,1776261614137,-3822.04,0.00017341,2]
[420541888,1776261614149,-845.96,0.00017341,2]
[420541889,1776261614161,-3227.18,0.00017341,2]
[420541890,1776261614171,-10225.02,0.00017341,2]
[420541891,1776261614180,-2150.54787922,0.00017353,2]
[420541892,1776261614193,-1492.23114589,0.00017375,2]
[420541893,1776261614205,-150.0,0.00017377,2]
[420541894,1776261614215,-150.0,0.00017377,2]
[420541895,1776261614225,-703.15974247,0.00017404,2]
[420541896,1776261614237,-5283.51830414,0.00017444,2]
[420541897,1776261614247,-150.0,0.00017486,2]
[420541898,1776261614257,-150.0,0.00017486,2]
[420541899,1776261614268,-7500.0,0.000175,3]
[420541900,1776261614281,-151.0,0.000175,5]
[420541901,1776261614291,-500.0,0.000175,5]
[420541902,1776261614302,-460.3,0.00017534,2]
[420541903,1776261614312,-150.0,0.00017534,2]
[420541904,1776261614323,-350.0,0.00017592,4]
[420541905,1776261614333,-150.0,0.00017652,30]
[420541906,1776261614344,-279.80057484,0.00017652,30]
[420541907,1776261614354,-789.17743592,0.000177,2]
[420541908,1776261614363,-593.87,0.000177,5]
[420541909,1776261614373,-150.0,0.000177,2]
[420541910,1776261614384,-150.0,0.000177,2]
[420541911,1776261614394,-150.0,0.000177,2]
[420541912,1776261614404,-150.0,0.000177,2]
[420541913,1776261614414,-150.0,0.000177,2]
[420541914,1776261614423,-175.0,0.000177,2]
[420541915,1776261614432,-150.0,0.00017745,120]
[420541916,1776261614442,-2150.54787922,0.0001778,7]
[420541917,1776261614452,-154.72820694,0.00017795,120]
[420541918,1776261614461,-6027.52,0.000178,2]